bitfinex/quotes_SOLUSD_20250817
["timestamp","ask_amount","ask_price","bid_price","bid_amount"]
[1755451320224,0.06,193.14,193.12,0.68]
[1755451320468,56.2019466,193.13,193.09,31.17866964]
[1755451320672,3.93573103,193.1,193.08,5.1791648]
[1755451320852,19.0419466,193.09,193.07,5.20941921]
[1755451321240,19.0419466,193.09,193.07,0.03]
[1755451321445,55.5819466,193.08,193.07,0.03]
[1755451322181,51.64621557,193.08,193.07,0.03]
[1755451322391,55.5819466,193.08,193.07,0.03]
[1755451322593,51.64621557,193.08,193.07,0.03]
[1755451323057,15.10621557,193.08,193.07,0.03]
[1755451324783,36.54,193.1,193.07,0.71]
[1755451325274,36.54,193.1,193.08,0.68]
[1755451325479,55.5819466,193.12,193.09,0.68]
[1755451325986,55.5819466,193.12,193.07,0.03]
[1755451326190,15.10621557,193.08,193.07,0.03]
[1755451326555,15.10621557,193.09,193.07,0.71]
[1755451327278,15.10621557,193.09,193.08,0.68]
[1755451327485,36.54,193.1,193.08,0.68]
[1755451327662,36.54,193.1,193.08,4.61573103]
[1755451327992,36.56,193.12,193.09,0.68]
[1755451328196,36.56,193.12,193.1,5.1786639]
[1755451328574,36.56,193.12,193.1,5.8586639]
[1755451330896,36.56,193.12,193.1,5.1786639]
[1755451332995,36.56,193.12,193.09,5.1789321]
[1755451333796,36.56,193.12,193.09,5.8589321]
[1755451335094,36.56,193.12,193.09,5.1789321]
[1755451335870,15.10621557,193.11,193.09,5.1789321]
[1755451336577,15.10621557,193.11,193.09,5.8589321]
[1755451339309,36.56,193.12,193.09,5.1789321]
[1755451339612,36.56,193.12,193.1,0.68]
[1755451340602,36.56,193.12,193.11,5.85839573]
[1755451343207,36.56,193.12,193.11,5.17839573]
[1755451343420,0.06,193.13,193.11,9.79412676]
[1755451343714,0.06,193.13,193.11,5.17839573]
[1755451344303,15.16621557,193.13,193.11,5.17839573]
[1755451344990,3.45685831,193.12,193.11,5.17839573]
[1755451345390,15.16621557,193.13,193.11,5.17839573]
[1755451346005,3.45702091,193.12,193.11,0.68]
[1755451346177,15.16621557,193.13,193.11,0.68]
[1755451346873,15.16621557,193.13,193.1,9.11439493]
[1755451347074,15.16621557,193.13,193.1,9.79439493]
[1755451347584,15.16621557,193.13,193.12,5.17812758]
[1755451347783,18.62346012,193.13,193.12,5.17812758]
[1755451348903,18.62346012,193.13,193.11,5.17831932]
[1755451349084,15.16621557,193.13,193.11,5.17831932]
[1755451349806,15.16621557,193.13,193.1,5.1786639]
[1755451349983,3.45733052,193.12,193.1,5.1786639]
[1755451350178,15.16621557,193.13,193.11,0.68]
[1755451350604,15.16621557,193.13,193.1,5.1786639]
[1755451350910,15.16621557,193.13,193.1,5.8586639]
[1755451351283,15.16621557,193.13,193.11,0.68]
[1755451352215,15.16621557,193.13,193.09,5.1789321]
[1755451352519,15.16621557,193.13,193.11,5.17839573]
[1755451353604,15.16621557,193.13,193.09,5.1789321]
[1755451353806,15.16621557,193.13,193.11,0.68]
[1755451354180,0.06,193.13,193.09,18.12626236]
[1755451354381,0.06,193.13,193.12,0.68]
[1755451354586,0.06,193.13,193.12,4.61573103]
[1755451355782,0.06,193.13,193.12,9.79385861]
[1755451357698,1e-08,193.13,193.12,9.79385861]
[1755451357902,1e-08,193.14,193.12,9.79385861]
[1755451358119,0.06,193.16,193.15,26.0]
[1755451358310,0.06,193.16,193.15,29.93573103]
[1755451358503,0.06,193.17,193.16,26.0]
[1755451358704,0.06,193.17,193.16,30.61573103]
[1755451359102,15.10621557,193.23,193.16,30.61573103]
[1755451359388,36.56,193.24,193.17,4.61573103]
[1755451359589,3.45389425,193.23,193.17,4.61573103]
[1755451359793,36.56,193.24,193.17,4.61573103]
[1755451360018,3.45389425,193.23,193.17,9.79251831]
[1755451360296,36.56,193.24,193.17,11.86564731]
[1755451360721,36.56,193.24,193.17,7.92991628]
[1755451361025,36.56,193.24,193.17,5.85678728]
[1755451361210,36.56,193.24,193.17,11.86564831]
[1755451361400,37.18,193.24,193.17,11.86564831]
[1755451362010,37.18,193.24,193.17,7.92991728]
[1755451362190,41.11573103,193.24,193.17,11.86564831]
[1755451362430,37.18,193.24,193.17,11.86564831]
[1755451362731,1e-08,193.18,193.17,11.86564831]
[1755451364227,1e-08,193.19,193.18,3.93573103]
[1755451364403,1e-08,193.19,193.18,4.61573103]
[1755451364602,1e-08,193.19,193.18,41.09573103]
[1755451365503,1e-08,193.19,193.18,43.16864603]
[1755451365914,1e-08,193.19,193.18,48.34516533]
[1755451368310,1e-08,193.19,193.18,44.4094343]
[1755451368528,1e-08,193.19,193.18,48.34516533]
[1755451371501,1e-08,193.19,193.18,48.37516533]
[1755451378024,1e-08,193.19,193.18,44.4394343]
[1755451378319,1e-08,193.19,193.18,48.37516533]
[1755451378857,0.62000001,193.19,193.18,2.102915]
[1755451379014,19.66194661,193.19,193.16,0.03]
[1755451379224,19.0419466,193.17,193.16,0.03]
[1755451379538,0.59,193.18,193.16,0.03]
[1755451379709,19.63194661,193.19,193.16,0.03]
[1755451379905,0.59,193.18,193.16,0.03]
[1755451380218,4.52573103,193.18,193.16,0.03]
[1755451380429,0.59,193.17,193.16,0.03]
[1755451386937,24.80873388,193.17,193.16,0.03]
[1755451387251,43.81025817,193.17,193.16,0.03]
[1755451387414,38.63347089,193.17,193.16,0.03]
[1755451387741,19.6319466,193.17,193.16,0.03]
[1755451390742,24.80873388,193.17,193.16,0.03]
[1755451391646,26.88315288,193.17,193.16,0.03]
[1755451392732,30.32765766,193.17,193.16,0.03]
[1755451404282,25.80192663,193.17,193.16,0.03]
[1755451404435,29.73765766,193.17,193.16,0.03]
[1755451404640,24.56087038,193.17,193.16,0.03]
[1755451405776,30.32765766,193.17,193.16,0.03]
[1755451406554,26.88315288,193.17,193.16,0.03]
[1755451406872,63.38315288,193.17,193.16,0.03]
[1755451407685,66.82511841,193.17,193.16,0.03]
[1755451409952,70.64916288,193.17,193.16,0.03]
[1755451410265,66.82511841,193.17,193.16,0.03]
[1755451410568,70.64898587,193.17,193.16,0.03]
[1755451412964,70.05898587,193.17,193.16,0.03]
[1755451413353,70.05863684,193.17,193.16,0.03]
[1755451413753,60.94611853,193.17,193.16,0.03]
[1755451414054,64.88184956,193.17,193.16,0.03]
[1755451414263,59.64688261,193.17,193.16,0.03]
[1755451415183,64.82366989,193.17,193.16,0.03]
[1755451415389,68.64948265,193.17,193.16,0.03]
[1755451416478,68.64959097,193.17,193.16,0.03]
[1755451421481,69.94496953,193.17,193.16,0.03]
[1755451422257,17.63049808,193.15,193.14,0.69356672]
[1755451422456,61.39838469,193.15,193.14,0.02356672]
[1755451422988,66.60689969,193.15,193.14,0.02356672]
[1755451423163,66.60689969,193.15,193.14,0.69356672]
[1755451425486,61.41435222,193.15,193.14,0.69356672]
[1755451426983,61.43010691,193.15,193.14,0.69356672]
[1755451428074,61.43160083,193.15,193.14,0.69356672]
[1755451429978,58.90731832,193.15,193.14,0.69356672]
[1755451430183,61.43160083,193.15,193.14,0.69356672]
[1755451430579,58.90731832,193.15,193.14,0.69356672]
[1755451434781,58.91455852,193.15,193.14,0.69356672]
[1755451435380,58.91455852,193.15,193.14,5.8711581]
[1755451435578,7.30834295,193.15,193.14,5.8711581]
[1755451436472,7.30834295,193.15,193.14,8.39544061]
[1755451436680,3.45772022,193.15,193.14,8.39544061]
[1755451436898,15.10621557,193.17,193.14,21.33941907]
[1755451437211,0.06,193.18,193.16,2.52428251]
[1755451437378,0.06,193.18,193.17,2.52428251]
[1755451437579,3.52574744,193.18,193.17,3.22428251]
[1755451438003,0.06,193.18,193.17,3.22428251]
[1755451438615,0.06,193.18,193.17,8.40106979]
[1755451440511,0.06,193.18,193.17,9.81710535]
[1755451441310,15.16621557,193.18,193.14,3.96388479]
[1755451441599,19.04653364,193.15,193.14,0.02356672]
[1755451441805,58.98743908,193.15,193.14,0.02356672]
[1755451442304,55.04712101,193.15,193.14,0.02356672]
[1755451443185,55.04712101,193.15,193.14,0.72356672]
[1755451443508,55.04712101,193.15,193.14,0.02356672]
[1755451444513,59.57743908,193.15,193.14,0.02356672]
[1755451444682,63.42241099,193.15,193.14,0.02356672]
[1755451445086,69.89521253,193.15,193.14,0.02356672]
[1755451445904,69.89523316,193.15,193.14,0.02356672]
[1755451446291,65.95491509,193.15,193.14,0.02356672]
[1755451446507,69.89523316,193.15,193.14,0.02356672]
[1755451447918,71.96986816,193.15,193.14,0.02356672]
[1755451448427,70.67436931,193.15,193.14,0.02356672]
[1755451449635,68.59973431,193.15,193.14,0.02356672]
[1755451450945,201.09973431,193.15,193.14,0.02356672]
[1755451451598,154.91209292,193.15,193.14,0.02356672]
[1755451451795,158.85241099,193.15,193.14,0.72356672]
[1755451452008,195.32753687,193.15,193.14,0.72356672]
[1755451452196,195.32753478,193.15,193.14,0.02356672]
[1755451452801,195.91753478,193.15,193.14,0.02356672]
[1755451453319,195.32753478,193.15,193.14,0.02356672]
[1755451455117,191.38721671,193.15,193.14,0.02356672]
[1755451455319,195.32753478,193.15,193.14,0.02356672]
[1755451458018,195.327442,193.15,193.14,0.02356672]
[1755451460302,200.50476532,193.15,193.14,0.02356672]
[1755451460504,195.327442,193.15,193.14,0.02356672]
[1755451461033,191.48743908,193.15,193.14,0.02356672]
[1755451461329,195.32670808,193.15,193.14,0.02356672]
[1755451462743,68.5940314,193.15,193.14,0.02356672]
[1755451462965,74.21159801,193.15,193.14,0.02356672]
[1755451463122,76.28655601,193.15,193.14,0.02356672]
[1755451463804,76.28672114,193.15,193.14,0.02356672]
[1755451466640,75.69672114,193.15,193.14,0.02356672]
[1755451466875,76.28672114,193.15,193.14,0.02356672]
[1755451467226,76.28570612,193.15,193.14,0.02356672]
[1755451468233,71.37355584,193.15,193.14,0.02356672]
[1755451469369,70.66797438,193.15,193.14,0.02356672]
[1755451469723,70.07797438,193.15,193.14,0.02356672]
[1755451470334,66.2397204,193.15,193.14,0.02356672]
[1755451470539,70.07589916,193.15,193.14,0.02356672]
[1755451470745,70.66589916,193.15,193.14,0.02356672]
[1755451470937,70.66579926,193.15,193.14,0.02356672]
[1755451471246,70.72616802,193.15,193.14,0.02356672]
[1755451473270,70.13616802,193.15,193.14,0.02356672]
[1755451475451,68.06121002,193.15,193.14,0.02356672]
[1755451476460,68.06191055,193.15,193.14,0.02356672]
[1755451477862,68.65191055,193.15,193.14,0.02356672]
[1755451478078,69.94746279,193.15,193.14,0.02356672]
[1755451478285,41.10621557,193.13,193.12,0.03]
[1755451478445,84.88426916,193.13,193.12,0.03]
[1755451478651,94.5924467,193.13,193.12,0.03]
[1755451479468,94.59247443,193.13,193.12,0.03]
[1755451479669,100.20432541,193.13,193.12,0.03]
[1755451480076,100.20440802,193.13,193.12,1e-08]
[1755451480666,100.19622996,193.13,193.12,1e-08]
[1755451483747,100.19804774,193.13,193.12,1e-08]
[1755451484262,95.88198897,193.13,193.12,1e-08]
[1755451484944,95.29198897,193.13,193.12,1e-08]
[1755451486163,99.61055778,193.13,193.12,1e-08]
[1755451486555,95.29198897,193.13,193.12,1e-08]
[1755451488684,95.29487934,193.13,193.12,1e-08]
[1755451489398,91.35456127,193.13,193.12,1e-08]
[1755451489560,95.29487934,193.13,193.12,1e-08]
[1755451489959,91.35456127,193.13,193.12,1e-08]
[1755451490173,99.61736315,193.13,193.12,0.72000001]
[1755451490357,48.40094655,193.13,193.12,0.72000001]
[1755451490558,22.40094655,193.13,193.12,0.72000001]
[1755451490786,43.75473098,193.13,193.12,0.72000001]
[1755451491084,58.86094655,193.13,193.12,0.72000001]
[1755451492898,55.01906258,193.13,193.12,0.72000001]
[1755451496392,58.86155097,193.13,193.12,0.72000001]
[1755451497589,55.01906258,193.13,193.12,0.72000001]
[1755451497762,58.86139376,193.13,193.12,0.72000001]
[1755451500399,55.01906258,193.13,193.12,0.72000001]
[1755451503585,55.07906258,193.13,193.12,0.72000001]
[1755451506487,51.62621557,193.13,193.12,0.72000001]
[1755451507611,51.62621557,193.13,193.12,5.89812759]
[1755451508236,0.06,193.13,193.12,9.84235809]
[1755451515232,1e-08,193.13,193.12,9.84235809]
[1755451515839,0.06,193.17,193.15,26.0]
[1755451516042,0.06,193.17,193.16,3.9442305]
[1755451516243,0.06,193.17,193.16,4.6442305]
[1755451516938,0.06,193.17,193.16,30.6442305]
[1755451517244,0.06,193.17,193.16,35.82128579]
[1755451517753,1e-08,193.17,193.16,36.33899131]
[1755451518535,1e-08,193.17,193.16,35.82128579]
[1755451522853,1e-08,193.17,193.16,72.24128579]
[1755451524753,1e-08,193.17,193.16,35.82128579]
[1755451525554,1e-08,193.17,193.16,36.33899131]
[1755451526549,1e-08,193.2,193.16,36.33899131]
[1755451526751,0.06,193.22,193.19,33.888461]
[1755451527069,0.06,193.22,193.21,3.9442305]
[1755451527273,1e-08,193.22,193.21,3.9442305]
[1755451527449,0.06,193.25,193.23,26.0]
[1755451527652,0.06,193.25,193.24,3.9442305]
[1755451527963,0.06,193.25,193.24,9.81914252]
[1755451528282,0.06,193.28,193.26,26.0]
[1755451528573,0.06,193.28,193.26,67.56166814]
[1755451528749,0.06,193.28,193.27,3.9442305]
[1755451528949,0.06,193.28,193.27,5.9771713]
[1755451529172,0.06,193.28,193.27,45.6214018]
[1755451529377,0.06,193.28,193.27,46.3214018]
[1755451529585,0.06,193.3,193.29,26.0]
[1755451529793,0.06,193.3,193.29,29.9442305]
[1755451529962,0.06,193.3,193.29,35.81780388]
[1755451530158,0.06,193.3,193.29,35.11780388]
[1755451532397,0.06,193.3,193.29,35.81780388]
[1755451533672,0.06,193.3,193.29,71.51780388]
[1755451535796,0.06,193.3,193.29,9.11780388]
[1755451535978,0.65,193.3,193.28,45.52803822]
[1755451536495,0.65,193.3,193.28,41.58380772]
[1755451536695,0.65,193.3,193.28,45.52803822]
[1755451537584,0.06,193.3,193.28,45.52803822]
[1755451540395,0.06,193.3,193.29,3.9442305]
[1755451542206,0.06,193.3,193.29,5.17357338]
[1755451542505,0.06,193.3,193.29,9.81780388]
[1755451543182,0.06,193.3,193.29,5.87357338]
[1755451543378,0.06,193.3,193.29,9.81780388]
[1755451547108,1e-08,193.3,193.29,9.81780388]
[1755451548181,0.06,193.33,193.31,26.0]
[1755451548380,0.06,193.33,193.32,66.3242305]
[1755451548597,0.06,193.33,193.32,71.49700103]
[1755451548914,0.06,193.33,193.32,72.17700103]
[1755451549999,0.06,193.34,193.32,72.17700103]
[1755451550299,0.06,193.34,193.33,4.6242305]
[1755451550501,15.10621557,193.4,193.34,5.17223544]
[1755451550696,15.10621557,193.4,193.35,40.3242305]
[1755451550896,0.69,193.42,193.35,67.0042305]
[1755451551894,0.69,193.42,193.35,72.17619843]
[1755451552703,0.1,193.42,193.35,72.17619843]
[1755451552902,0.69,193.42,193.35,72.17619843]
[1755451553586,1e-08,193.36,193.35,46.17619843]
[1755451553814,0.1,193.42,193.39,26.0]
[1755451554016,1e-08,193.42,193.4,41.53063081]
[1755451554338,1e-08,193.42,193.41,40.3042305]
[1755451554499,1e-08,193.42,193.41,40.9842305]
[1755451555233,1e-08,193.42,193.41,46.15459397]
[1755451556025,1e-08,193.42,193.41,42.21036347]
[1755451556217,1e-08,193.42,193.41,46.15459397]
[1755451560308,1e-08,193.42,193.41,9.11459397]
[1755451560514,1e-08,193.42,193.41,45.47459397]
[1755451560714,1e-08,193.42,193.41,41.53036347]
[1755451561037,1e-08,193.42,193.41,40.3042305]
[1755451561603,1e-08,193.42,193.41,40.9842305]
[1755451562311,1e-08,193.42,193.41,46.15459397]
[1755451562817,1e-08,193.42,193.41,45.47459397]
[1755451564848,1e-08,193.42,193.41,45.45459397]
[1755451567013,1e-08,193.42,193.41,5.17036347]
[1755451567211,0.59000001,193.42,193.41,45.45459397]
[1755451567417,0.59000001,193.42,193.35,0.68]
[1755451567638,0.59000001,193.42,193.38,3.9442305]
[1755451567819,0.59,193.41,193.38,66.2842305]
[1755451568025,0.59,193.41,193.4,26.0]
[1755451569529,0.59,193.41,193.38,45.48517978]
[1755451570042,1e-08,193.42,193.38,45.48517978]
[1755451570250,0.59000001,193.42,193.38,45.48517978]
[1755451570749,0.59000001,193.42,193.39,3.9442305]
[1755451571344,0.59000001,193.42,193.39,5.17087298]
[1755451573946,0.59000001,193.42,193.39,9.11510348]
[1755451574137,15.10621558,193.42,193.39,3.9442305]
[1755451575256,15.10621558,193.42,193.39,9.1148617]
[1755451576150,1e-08,193.42,193.39,9.1148617]
[1755451576349,1e-08,193.42,193.39,9.7848617]
[1755451576546,0.59000001,193.42,193.39,9.1148617]
[1755451577461,1e-08,193.42,193.39,9.1148617]
[1755451578168,0.59000001,193.42,193.39,9.1148617]
[1755451579363,1e-08,193.42,193.39,9.7848617]
[1755451580350,1e-08,193.42,193.41,3.9442305]
[1755451580738,1e-08,193.42,193.41,4.6142305]
[1755451580933,1e-08,193.42,193.41,30.6142305]
[1755451581359,1e-08,193.42,193.41,26.67]
[1755451581531,1e-08,193.42,193.41,66.9542305]
[1755451582864,1e-08,193.42,193.41,72.12459397]
[1755451588846,1e-08,193.44,193.41,72.12459397]
[1755451589048,1e-08,193.44,193.43,29.9442305]
[1755451589247,1e-08,193.44,193.43,66.2842305]
[1755451589571,1e-08,193.44,193.43,66.9542305]
[1755451589966,1e-08,193.44,193.43,72.12405937]
[1755451590784,0.06,193.48,193.43,89.50984494]
[1755451590987,1e-08,193.48,193.47,29.9442305]
[1755451591184,1e-08,193.48,193.47,66.2842305]
[1755451591501,1e-08,193.48,193.47,66.9542305]
[1755451592885,1e-08,193.48,193.47,72.12299051]
[1755451595110,1e-08,193.48,193.47,72.10299051]
[1755451596323,1e-08,193.48,193.47,71.43299051]
[1755451597993,1e-08,193.48,193.47,72.10299051]
[1755451600813,1e-08,193.48,193.47,67.48876001]
[1755451601020,1e-08,193.48,193.47,71.43299051]
[1755451601598,1e-08,193.48,193.47,72.10299051]
[1755451602404,1e-08,193.48,193.47,72.13299051]
[1755451616042,0.06,193.54,193.47,111.41556661]
[1755451616356,0.06,193.54,193.53,3.9442305]
[1755451616561,0.06,193.54,193.53,40.2642305]
[1755451617455,0.06,193.54,193.53,46.12138804]
[1755451618361,0.06,193.54,193.53,50.33934082]
[1755451618654,0.06,193.54,193.53,42.17715754]
[1755451618843,0.06,193.54,193.53,46.12138804]
[1755451619243,1e-08,193.54,193.53,51.3568151]
[1755451620460,1e-08,193.54,193.53,55.50057236]
[1755451620754,1e-08,193.54,193.53,51.3568151]
[1755451620985,0.59000001,193.54,193.53,36.4025846]
[1755451621157,0.59000001,193.54,193.53,72.7225846]
[1755451621348,0.59000001,193.54,193.53,67.46715754]
[1755451621880,0.59000001,193.54,193.53,71.41138804]
[1755451622058,1e-08,193.54,193.53,76.53561012]
[1755451623336,0.59000001,193.54,193.53,76.53561012]
[1755451623545,0.59000001,193.54,193.53,71.41138804]
[1755451626880,1e-08,193.54,193.53,76.49681768]
[1755451627197,0.59000001,193.54,193.53,76.49681768]
[1755451627678,0.59000001,193.54,193.53,40.19681768]
[1755451627860,0.59000001,193.54,193.53,72.55258718]
[1755451628556,0.59000001,193.54,193.53,36.25258718]
[1755451628909,0.59000001,193.54,193.52,36.3]
[1755451629202,0.59000001,193.54,193.52,41.46739684]
[1755451630088,15.10621557,193.53,193.49,5.29496872]
[1755451630279,0.59,193.52,193.5,36.3]
[1755451631263,4.5342305,193.52,193.49,36.3]
[1755451631480,0.59,193.51,193.49,36.3]
[1755451631791,0.59,193.51,193.48,41.46849286]
[1755451632375,15.10621557,193.5,193.47,0.03]
[1755451632880,0.59,193.49,193.47,5.19875756]
[1755451633185,0.59,193.48,193.47,5.19875756]
[1755451633398,0.59,193.48,193.47,0.03]
[1755451633399,15.69621557,193.48,193.47,0.03]
[1755451633559,19.64044607,193.48,193.47,0.03]
[1755451634266,23.48698675,193.48,193.47,0.03]
[1755451634702,26.94796138,193.48,193.47,0.03]
[1755451635267,23.48698675,193.48,193.47,0.03]
[1755451635588,26.94686449,193.48,193.47,0.03]
[1755451635773,23.48698675,193.48,193.47,0.03]
[1755451636592,26.94657283,193.48,193.47,0.03]
[1755451637278,23.00234233,193.48,193.47,0.03]
[1755451637476,26.94657283,193.48,193.47,0.03]
[1755451639296,28.65547961,193.48,193.47,0.03]
[1755451639484,32.10856883,193.48,193.47,0.03]
[1755451641084,28.26202815,193.48,193.47,0.03]
[1755451641282,32.09666482,193.48,193.47,0.03]
[1755451641796,68.41516116,193.48,193.47,0.03]
[1755451642574,62.6566683,193.48,193.47,0.03]
[1755451642776,59.20357908,193.48,193.47,0.03]
[1755451643694,55.96044607,193.48,193.47,0.03]
[1755451645812,61.12893893,193.48,193.47,0.03]
[1755451645978,64.95766388,193.48,193.47,0.03]
[1755451646903,68.40260968,193.48,193.47,0.03]
[1755451647223,64.95766388,193.48,193.47,0.03]
[1755451648111,68.40126723,193.48,193.47,0.03]
[1755451648408,15.10621557,193.47,193.45,0.03]
[1755451648707,31.49180155,193.46,193.45,0.03]
[1755451649003,32.08180155,193.46,193.45,0.03]
[1755451651011,32.07510752,193.46,193.45,0.03]
[1755451651218,28.63150417,193.46,193.45,0.03]
[1755451651686,32.07072429,193.46,193.45,0.03]
[1755451652219,28.63150417,193.46,193.45,0.03]
[1755451653010,32.0697879,193.46,193.45,0.03]
[1755451653416,68.3897879,193.46,193.45,0.03]
[1755451653615,68.38704258,193.46,193.45,0.03]
[1755451653786,68.38704258,193.46,193.44,0.03]
[1755451653787,15.10621557,193.45,193.44,0.03]
[1755451653992,30.8422459,193.45,193.44,0.03]
[1755451654196,30.2522459,193.45,193.44,0.03]
[1755451654405,30.8422459,193.45,193.44,0.03]
[1755451654692,36.01154029,193.45,193.44,0.03]
[1755451656192,36.01154029,193.45,193.43,0.03]
[1755451656392,93.1622459,193.44,193.43,0.03]
[1755451656798,41.10621557,193.42,193.41,0.03]
[1755451657006,85.18565871,193.42,193.41,0.03]
[1755451657220,85.77565871,193.42,193.41,0.03]
[1755451659724,90.94316905,193.42,193.41,0.03]
[1755451660023,50.08893855,193.42,193.41,0.03]
[1755451660230,90.35316905,193.42,193.41,0.74]
[1755451660525,90.35334139,193.42,193.41,0.74]
[1755451660703,85.18324523,193.42,193.41,0.74]
[1755451661722,55.23901473,193.42,193.41,0.74]
[1755451662111,51.42621557,193.42,193.41,0.74]
[1755451662317,55.23868716,193.42,193.41,0.74]
[1755451664404,55.23868716,193.42,193.41,5.91036347]
[1755451664810,15.10621557,193.45,193.41,5.91036347]
[1755451665009,15.10621557,193.43,193.42,0.69]
[1755451665942,15.10621557,193.43,193.42,5.86009616]
[1755451666122,15.10621557,193.43,193.42,0.69]
[1755451667723,15.10621557,193.43,193.42,0.72]
[1755451669417,18.92646392,193.43,193.42,0.72]
[1755451669613,18.92681319,193.43,193.42,0.72]
[1755451670540,24.09664206,193.43,193.42,0.03]
[1755451670726,28.04087256,193.43,193.42,0.03]
[1755451671340,31.48136196,193.43,193.42,0.03]
[1755451672259,22.87104369,193.43,193.42,0.72]
[1755451673441,22.87104369,193.43,193.42,0.03]
[1755451673858,26.31562907,193.43,193.42,0.03]
[1755451674724,22.37139857,193.43,193.42,0.03]
[1755451674927,26.32517086,193.43,193.42,0.03]
[1755451675532,26.32517086,193.43,193.42,0.72]
[1755451677548,22.38094036,193.43,193.42,0.72]
[1755451677945,54.87080095,193.43,193.42,0.72]
[1755451678141,62.65075116,193.43,193.42,0.03]
[1755451678533,58.81503145,193.43,193.42,0.03]
[1755451678738,62.65240174,193.43,193.42,0.03]
[1755451678940,62.65213595,193.43,193.42,0.03]
[1755451679142,62.65213595,193.43,193.42,0.72]
[1755451679648,58.70790545,193.43,193.42,0.72]
[1755451680851,55.26332007,193.43,193.42,0.72]
[1755451681031,18.94332007,193.43,193.42,5.89009616]
[1755451681237,18.94332007,193.43,193.42,9.83432666]
[1755451681446,18.94332007,193.43,193.42,5.89009616]
[1755451681652,26.34348246,193.43,193.42,0.72]
[1755451681859,26.34348246,193.43,193.42,0.03]
[1755451681860,62.66348246,193.43,193.42,0.03]
[1755451682657,58.71925196,193.43,193.42,0.03]
[1755451682872,62.66348246,193.43,193.42,0.03]
[1755451683382,62.66348246,193.43,193.42,0.72]
[1755451683676,62.66348246,193.43,193.42,0.03]
[1755451684243,62.66348246,193.43,193.42,0.72]
[1755451684441,62.72348246,193.43,193.42,0.72]
[1755451685548,62.72348246,193.43,193.42,0.03]
[1755451685969,58.77925196,193.43,193.42,0.72]
[1755451686374,58.78131709,193.43,193.42,0.72]
[1755451686874,58.78179147,193.43,193.42,0.72]
[1755451687657,58.78179147,193.43,193.42,0.03]
[1755451687864,58.78179147,193.43,193.42,0.72]
[1755451688781,62.72602197,193.43,193.42,0.03]
[1755451689983,68.48585084,193.43,193.42,0.03]
[1755451690784,67.89585084,193.43,193.42,0.03]
[1755451695682,67.90360714,193.43,193.42,0.03]
[1755451696056,67.90352282,193.43,193.42,0.03]
[1755451696562,67.90352282,193.43,193.42,0.69]
[1755451696563,58.78946345,193.43,193.42,0.69]
[1755451696755,59.27776206,193.43,193.42,0.69]
[1755451696957,58.79619852,193.43,193.42,0.69]
[1755451701373,22.47619852,193.43,193.42,5.86009616]
[1755451701778,22.47619852,193.43,193.42,0.69]
[1755451703273,22.47619852,193.43,193.42,5.86009616]
[1755451703681,22.47619852,193.43,193.42,9.80432666]
[1755451703876,22.47619852,193.43,193.42,5.86009616]
[1755451704081,62.72042902,193.43,193.42,0.03]
[1755451704299,67.89025789,193.43,193.42,0.03]
[1755451704600,64.6329419,193.43,193.42,0.03]
[1755451704796,68.48298415,193.43,193.42,0.03]
[1755451705273,69.77664316,193.43,193.41,0.03]
[1755451705466,31.28303277,193.42,193.41,0.03]
[1755451706772,147.60621557,193.41,193.4,0.03]
[1755451706976,224.27252656,193.41,193.4,0.03]
[1755451707311,228.21675706,193.41,193.4,0.03]
[1755451707671,227.62675706,193.41,193.4,0.03]
[1755451707875,227.62381074,193.41,193.4,0.03]
[1755451708276,231.95021586,193.41,193.4,0.03]
[1755451708582,230.65647765,193.41,193.4,0.03]
[1755451708783,226.33007253,193.41,193.4,0.03]
[1755451710201,231.24647765,193.41,193.4,0.03]
[1755451710399,226.92007253,193.41,193.4,0.03]
[1755451710900,94.42007253,193.41,193.4,0.03]
[1755451711271,94.42007253,193.41,193.38,0.03]
[1755451711272,41.10621557,193.39,193.38,0.03]
[1755451711476,97.64583976,193.39,193.38,0.03]
[1755451711704,98.23583976,193.39,193.38,0.03]